bitfinex-derivatives/quotes_SOLF0:USTF0_20240904
["timestamp","ask_amount","ask_price","bid_price","bid_amount"]
[1725472188028,3.7569,133.09,133.08,0.05545957]
[1725472189133,0.05387054,133.11,133.08,0.05545957]
[1725472189933,3.81017054,133.11,133.08,3.81215957]
[1725472190536,3.7565,133.1,133.08,0.05545957]
[1725472192138,3.81007054,133.11,133.08,3.81215957]
[1725472193042,3.81007054,133.11,133.09,3.7566]
[1725472193043,0.05387054,133.11,133.09,3.7566]
[1725472193337,0.05387054,133.11,133.08,0.05545957]
[1725472193540,0.05387054,133.11,133.09,17.31]
[1725472194333,0.05387054,133.11,133.1,3.7563]
[1725472201746,22.43165361,133.16,133.09,17.31]
[1725472201747,1.3601,133.16,133.09,17.31]
[1725472201945,21.11681741,133.18,133.1,17.31]
[1725472202246,3.7545,133.17,133.14,3.7551]
[1725472202552,3.68135096,133.19,133.1,17.31]
[1725472202851,17.31,133.15,133.07,3.757]
[1725472203061,0.04729351,133.12,133.1,0.05489489]
[1725472203352,0.04729351,133.12,133.1,0.0505738]
[1725472203851,3.80329351,133.12,133.1,0.0505738]
[1725472205146,17.31,133.11,133.04,1.4406]
[1725472205350,17.31,133.09,133.04,5.24094129]
[1725472205548,3.757,133.08,133.04,3.7579]
[1725472205753,17.31,133.09,133.04,3.7579]
[1725472206345,3.81284297,133.08,133.05,0.04962487]
[1725472207057,3.7573,133.07,133.05,0.04962487]
[1725472208254,3.7575,133.06,133.05,0.04962487]
[1725472212061,3.7582,133.04,132.98,18.6239]
[1725472212251,21.01706366,133.08,132.98,18.6239]
[1725472212451,3.7579,133.05,133.02,3.7585]
[1725472212857,3.80994807,133.05,133.02,3.81147297]
[1725472213560,3.758,133.04,133.02,3.81147297]
[1725472213960,3.758,133.04,133.02,0.05297297]
[1725472214359,3.80984807,133.05,133.02,3.81157297]
[1725472214562,0.05204807,133.05,133.02,0.05297297]
[1725472215154,3.80984807,133.05,133.02,3.81147297]
[1725472215871,3.758,133.04,133.02,0.05297297]
[1725472216071,0.05204807,133.05,133.02,0.05297297]
[1725472216868,0.05204807,133.05,133.03,3.7582]
[1725472217974,3.81004807,133.05,133.02,3.81147297]
[1725472218974,3.81004807,133.05,133.03,3.7583]
[1725472219581,3.81004807,133.05,133.02,3.81137297]
[1725472219874,3.81004807,133.05,133.02,0.05297297]
[1725472219875,3.758,133.04,133.02,0.05297297]
[1725472220069,6.98204807,133.05,133.02,0.05297297]
[1725472220372,3.7583,133.03,133.02,0.05297297]
[1725472221674,6.93,133.04,133.02,0.05297297]
[1725472221675,10.6882,133.04,133.02,0.05297297]
[1725472222075,3.7582,133.04,133.02,0.05297297]
[1725472222374,3.7583,133.03,133.02,0.05297297]
[1725472225673,0.05204807,133.05,133.02,0.05297297]
[1725472226380,0.05204807,133.05,133.02,3.81157297]
[1725472226575,0.05204807,133.05,133.02,0.05297297]
[1725472226981,3.7583,133.03,133.02,0.05297297]
[1725472228777,21.0783,133.03,133.02,0.05297297]
[1725472229273,3.7595,132.99,132.97,3.7599]
[1725472229481,17.32,133.01,132.94,2.7713]
[1725472229680,17.32,133.01,132.94,6.48483838]
[1725472229879,3.7597,132.99,132.96,3.7602]
[1725472230278,17.3759078,132.99,132.96,0.0567218]
[1725472230490,17.32,132.97,132.88,4.1963]
[1725472230678,17.32,132.95,132.88,4.1963]
[1725472231175,17.32,132.95,132.88,2.7789]
[1725472231375,0.05273024,132.93,132.88,6.55785419]
[1725472231584,3.7616,132.92,132.9,0.05708402]
[1725472231974,0.05273024,132.93,132.9,0.05708402]
[1725472231975,3.7617,132.91,132.9,0.05708402]
[1725472238190,0.05273024,132.93,132.9,0.05708402]
[1725472239192,3.81393024,132.93,132.9,3.81888402]
[1725472239885,3.81393024,132.93,132.9,0.05708402]
[1725472239886,0.05273024,132.93,132.9,0.05708402]
[1725472240293,3.823324,133.0,132.92,17.32]
[1725472240497,3.76,132.98,132.93,1.4244]
[1725472240691,3.823324,133.0,132.93,1.4244]
[1725472240995,3.76,132.97,132.94,3.7607]
[1725472241587,3.81185886,132.97,132.94,3.8155653]
[1725472241788,0.05185886,132.97,132.94,0.0548653]
[1725472242193,17.32,132.96,132.94,0.0548653]
[1725472242404,3.7606,132.95,132.94,0.0548653]
[1725472250495,17.32,132.95,132.89,1.3861]
[1725472250703,1.4432,132.98,132.87,1.3488]
[1725472250704,17.32,132.92,132.88,3.7624]
[1725472251001,17.32,132.92,132.87,1.3488]
[1725472251304,3.7619,132.91,132.88,3.7625]
[1725472251501,0.05384954,132.91,132.88,3.8143449]
[1725472251900,0.05384954,132.91,132.9,3.762]
[1725472252697,0.05384954,132.91,132.89,1.3894]
[1725472253100,0.05384954,132.91,132.9,10.56732866]
[1725472253306,17.32,132.96,132.9,6.80532866]
[1725472253505,17.32,132.96,132.89,1.3894]
[1725472253708,17.32,132.96,132.9,6.80348254]
[1725472254001,17.32,132.96,132.91,17.69567373]
[1725472254213,0.054123,132.95,132.92,0.0526516]
[1725472254408,3.814723,132.95,132.92,3.8139516]
[1725472255713,0.054123,132.95,132.93,3.7611]
[1725472256814,0.054123,132.95,132.94,3.7609]
[1725472257214,0.054123,132.95,132.92,0.0526516]
[1725472257414,0.054123,132.95,132.93,3.7609]
[1725472257612,0.054123,132.95,132.92,0.0526516]
[1725472258209,0.054123,132.95,132.94,3.7609]
[1725472260818,3.814823,132.95,132.93,3.7611]
[1725472261316,0.054123,132.95,132.92,0.0526516]
[1725472261512,21.0793,133.0,132.92,17.3726516]
[1725472261712,17.32,133.0,132.92,17.32]
[1725472261913,3.7591,133.01,132.98,3.7596]
[1725472262110,3.7591,133.01,132.93,1.3988]
[1725472262111,17.32,133.04,132.96,17.32]
[1725472262314,21.02336119,133.04,132.97,3.75037725]
[1725472262516,0.05281795,133.02,133.0,3.759]
[1725472263118,3.81141795,133.02,133.0,3.759]
[1725472263315,0.05281795,133.02,133.0,3.759]
[1725472263612,0.05281795,133.02,133.01,3.7589]
[1725472265040,3.7576,133.06,133.03,3.7582]
[1725472265927,3.80752075,133.06,133.03,3.80750628]
[1725472266833,3.7578,133.05,133.03,0.04930628]
[1725472267332,0.04992075,133.06,133.03,0.04930628]
[1725472268433,0.04992075,133.06,133.05,3.7577]
[1725472272036,0.04992075,133.06,133.04,3.7578]
[1725472272528,0.04992075,133.06,133.03,0.04930628]
[1725472272731,17.36992075,133.06,133.03,0.04930628]
[1725472273133,21.078,133.04,133.03,0.04930628]
[1725472275932,3.758,133.04,133.03,0.04930628]
[1725472279139,3.7594,133.0,132.96,4.1838]
[1725472279345,17.32,133.02,132.97,3.7598]
[1725472279547,17.32,133.02,132.96,1.3396]
[1725472279945,0.05663915,133.0,132.98,0.05692807]
[1725472281241,3.7594,132.99,132.98,0.05692807]
[1725472283242,3.7605,132.96,132.91,1.3741]
[1725472284352,0.050495,132.95,132.93,3.761]
[1725472284650,0.050495,132.95,132.92,0.05075164]
[1725472285246,0.050495,132.95,132.92,17.37075164]
[1725472285439,0.050495,132.95,132.94,3.7609]
[1725472285751,3.7595,132.99,132.93,17.32]
[1725472286961,0.0552739,132.97,132.95,0.05455154]
[1725472287152,0.0552739,132.97,132.96,3.7603]
[1725472287351,0.0552739,132.97,132.95,0.05455154]
[1725472287552,0.0552739,132.97,132.95,3.81505154]
[1725472287753,0.0552739,132.97,132.95,0.05455154]
[1725472288355,3.8153739,132.97,132.95,0.05455154]
[1725472289254,3.7603,132.96,132.95,0.05455154]
[1725472289457,0.0552739,132.97,132.95,0.05455154]
[1725472290258,3.8154739,132.97,132.95,0.05455154]
[1725472290956,3.7603,132.96,132.95,0.05455154]
[1725472291146,0.0552739,132.97,132.95,0.05455154]
[1725472291546,3.7603,132.96,132.95,0.05455154]
[1725472298359,3.7603,132.96,132.89,2.7807]
[1725472298360,3.7613,132.93,132.89,1.4132]
[1725472298556,21.0813,132.93,132.89,1.4132]
[1725472298758,21.0813,132.93,132.9,3.7618]
[1725472299266,21.13141755,132.93,132.9,3.81862524]
[1725472301066,0.05011755,132.93,132.91,3.7615]
[1725472301369,0.05011755,132.93,132.9,0.05682524]
[1725472302265,0.05011755,132.93,132.92,3.7614]
[1725472304060,17.32,133.0,132.92,17.32]
[1725472304270,17.32,132.99,132.91,1.4158]
[1725472304965,3.7603,132.97,132.94,3.7607]
[1725472305273,0.0477815,132.97,132.94,0.05735261]
[1725472305570,17.3677815,132.97,132.94,0.05735261]
[1725472305766,3.7606,132.95,132.94,0.05735261]
[1725472307169,17.3677815,132.97,132.94,3.81805261]
[1725472307774,3.7605,132.96,132.94,0.05735261]
[1725472307973,17.3677815,132.97,132.94,0.05735261]
[1725472308970,17.32,132.95,132.89,1.4132]
[1725472309269,39.86,132.94,132.84,18.6402]
[1725472309471,17.32,132.88,132.82,2.7586]
[1725472309971,0.05286747,132.86,132.84,0.05644055]
[1725472310172,0.05286747,132.86,132.84,3.82004055]
[1725472311964,17.37286747,132.86,132.84,0.05644055]
[1725472312476,3.7634,132.85,132.84,0.05644055]
[1725472313963,21.13616747,132.86,132.84,0.05644055]
[1725472314271,17.37286747,132.86,132.84,0.05644055]
[1725472314475,3.7634,132.85,132.84,0.05644055]
[1725472315873,17.37286747,132.86,132.84,0.05644055]
[1725472316173,0.05286747,132.86,132.84,0.05644055]
[1725472316366,0.05286747,132.86,132.84,3.82004055]
[1725472317377,3.81596747,132.86,132.84,3.82004055]
[1725472319269,0.05286747,132.86,132.85,3.7634]
[1725472320585,0.05286747,132.86,132.84,3.82004055]
[1725472321279,3.81616747,132.86,132.84,0.05644055]
[1725472321883,3.7634,132.85,132.84,0.05644055]
[1725472322083,0.05286747,132.86,132.84,0.05644055]
[1725472322282,17.37286747,132.86,132.84,0.05644055]
[1725472322481,21.13616747,132.86,132.84,0.05644055]
[1725472324581,3.7634,132.85,132.84,0.05644055]
[1725472324782,21.0834,132.85,132.84,0.05644055]
[1725472340395,17.32,132.85,132.84,3.82014055]
[1725472340686,3.81616747,132.86,132.84,3.82014055]
[1725472342093,3.7634,132.85,132.84,0.05644055]
[1725472342991,0.05286747,132.86,132.84,0.05644055]
[1725472343592,0.05286747,132.86,132.84,3.82004055]
[1725472344098,6.94,132.85,132.84,3.82004055]
[1725472345395,0.05286747,132.86,132.85,3.7634]
[1725472347196,6.94,132.89,132.88,3.7625]
[1725472347395,6.94,132.9,132.85,3.68715006]
[1725472347596,6.94,132.9,132.89,3.7621]
[1725472347800,6.94,132.9,132.85,3.7989275]
[1725472347998,100.82015316,132.92,132.83,6.94]
[1725472348302,0.05160198,132.89,132.88,3.7626]
[1725472350990,0.05160198,132.89,132.87,0.05714827]
[1725472351201,6.99160198,132.89,132.87,0.05714827]
[1725472351497,10.75400198,132.89,132.87,0.05714827]
[1725472351892,17.39160198,132.89,132.87,3.81994827]
[1725472352297,17.39160198,132.89,132.87,0.05714827]
[1725472352900,0.05160198,132.89,132.87,0.05714827]
[1725472353598,0.05160198,132.89,132.88,3.7626]
[1725472355695,0.05160198,132.89,132.87,3.81994827]
[1725472356498,3.81400198,132.89,132.87,0.05714827]
[1725472356706,3.81400198,132.89,132.87,3.81994827]
[1725472359505,3.7626,132.88,132.87,0.05714827]
[1725472359706,0.05160198,132.89,132.87,0.05714827]
[1725472360403,17.39160198,132.89,132.87,0.05714827]
[1725472361704,17.34,132.88,132.82,1.436]
[1725472362101,17.34,132.86,132.81,1.4423]
[1725472362302,21.16348513,132.86,132.81,1.4423]
[1725472362699,21.16348513,132.86,132.82,3.7641]
[1725472362906,0.04858683,132.85,132.83,0.05463919]
[1725472363510,3.81208683,132.85,132.83,0.05463919]
[1725472363806,3.81208683,132.85,132.83,3.81853919]
[1725472364002,0.04858683,132.85,132.83,0.05463919]
[1725472365003,0.04858683,132.85,132.83,3.81843919]
[1725472367708,3.81208683,132.85,132.83,3.81843919]
[1725472367908,0.04858683,132.85,132.83,3.81843919]
[1725472368410,0.04858683,132.85,132.83,0.05463919]
[1725472368914,3.81218683,132.85,132.83,0.05463919]
[1725472369108,0.04858683,132.85,132.83,0.05463919]
[1725472369303,21.1037,132.84,132.83,0.05463919]
[1725472370915,0.04858683,132.85,132.83,0.05463919]
[1725472370916,3.81218683,132.85,132.83,0.05463919]
[1725472371815,21.1037,132.84,132.83,0.05463919]
[1725472372015,10.7037,132.84,132.83,0.05463919]
[1725472374014,21.1137,132.84,132.83,0.05463919]
[1725472375312,3.7637,132.84,132.83,0.05463919]
[1725472376308,17.39858683,132.85,132.83,0.05463919]
[1725472376309,0.04858683,132.85,132.83,0.05463919]
[1725472377113,3.81198683,132.85,132.83,3.81843919]
[1725472378016,3.7637,132.84,132.83,0.05463919]
[1725472378314,21.1137,132.84,132.83,0.05463919]
[1725472379017,39.89,132.84,132.77,1.3774]
[1725472379217,17.35,132.8,132.77,1.3774]
[1725472380014,17.35,132.8,132.77,1.43209769]
[1725472380015,0.05579289,132.8,132.77,1.43209769]
[1725472381015,3.7653,132.79,132.77,1.43209769]
[1725472382018,17.35,132.79,132.66,7.5373]
[1725472382220,17.35,132.79,132.71,1.4373]
[1725472382622,21.11016929,132.79,132.71,1.4373]
[1725472383022,0.05558379,132.76,132.74,3.817983]
[1725472383617,0.05558379,132.76,132.74,0.051483]
[1725472383925,0.05558379,132.76,132.75,3.7662]
[1725472384927,17.35,132.81,132.74,0.051483]
[1725472385123,17.35,132.81,132.73,22.59923314]
[1725472385319,3.7647,132.81,132.77,3.7654]
[1725472385523,17.35,132.81,132.73,22.59923314]
[1725472385924,0.05391581,132.78,132.76,0.05296629]
[1725472386526,3.81951581,132.78,132.76,0.05296629]
[1725472386728,0.05391581,132.78,132.76,0.05296629]
[1725472387026,3.81951581,132.78,132.76,0.05296629]
[1725472387620,3.7657,132.77,132.76,0.05296629]
[1725472387829,22.54,132.77,132.71,1.4373]
[1725472388021,22.54,132.77,132.66,3.75753321]
[1725472388022,17.35,132.74,132.67,1.3553]
[1725472388326,3.7139358,132.73,132.67,1.3553]
[1725472388725,3.7139358,132.73,132.67,5.1615192]
[1725472388925,3.7139358,132.73,132.69,0.0576356]
[1725472388926,3.82259265,132.71,132.69,0.0576356]
[1725472389432,0.05509265,132.71,132.69,0.0576356]
[1725472389633,0.05509265,132.71,132.7,3.7677]
[1725472390637,17.35,132.75,132.71,3.7672]
[1725472391029,3.7666,132.74,132.71,3.7672]
[1725472391331,17.35,132.75,132.71,3.7672]
[1725472391527,0.05073299,132.74,132.72,0.04983277]
[1725472392634,0.05073299,132.74,132.73,3.7668]
[1725472393028,0.05073299,132.74,132.72,0.04983277]
[1725472393233,0.05073299,132.74,132.73,3.7668]
[1725472395749,17.40073299,132.74,132.72,0.04983277]
[1725472397943,21.16743299,132.74,132.72,0.04983277]
[1725472398148,0.05073299,132.74,132.72,0.04983277]
[1725472398843,0.05073299,132.74,132.73,3.7668]
[1725472401534,0.05073299,132.74,132.72,3.81673277]
[1725472401745,0.05073299,132.74,132.72,0.04983277]
[1725472402142,21.1168,132.73,132.72,0.04983277]
[1725472403536,3.81723299,132.74,132.72,3.81693277]
[1725472403850,0.05073299,132.74,132.72,0.04983277]
[1725472404740,3.81733299,132.74,132.72,0.04983277]
[1725472405644,3.7668,132.73,132.72,0.04983277]
[1725472406543,17.35,132.73,132.67,5.1615192]
[1725472406745,17.35,132.69,132.67,1.3553]
[1725472406948,1.3356,132.75,132.65,2.6543]
[1725472407242,17.35,132.7,132.65,2.6543]
[1725472407446,17.35,132.7,132.66,1.3514]
[1725472407647,0.05748275,132.69,132.67,3.82404101]
[1725472407841,17.35,132.72,132.67,0.05574101]
[1725472408043,17.35,132.72,132.66,1.3514]
[1725472408448,21.1173,132.72,132.68,3.768]
[1725472408849,0.05367405,132.71,132.69,0.05204617]
[1725472409448,3.82107405,132.71,132.69,0.05204617]
[1725472411443,0.05367405,132.71,132.69,3.81994617]
[1725472412648,0.05367405,132.71,132.69,0.05204617]
[1725472413543,17.35,132.7,132.62,3.7698]
[1725472413748,17.35,132.67,132.61,1.4383]
[1725472414652,0.05398921,132.65,132.63,0.05116191]
[1725472414847,3.7695,132.64,132.63,0.05116191]
[1725472417347,21.17328921,132.65,132.63,0.05116191]
[1725472417547,0.05398921,132.65,132.63,0.05116191]
[1725472417845,3.7694,132.64,132.63,0.05116191]
[1725472418241,0.05398921,132.65,132.63,0.05116191]
[1725472418446,3.7694,132.64,132.63,0.05116191]
[1725472421858,0.05398921,132.65,132.63,0.05116191]
[1725472422655,0.6511,132.71,132.63,0.05116191]
[1725472422656,17.35,132.71,132.64,3.71908506]
[1725472422952,17.35,132.71,132.64,1.4469]
[1725472423147,3.7678,132.7,132.67,3.7684]
[1725472423347,3.7678,132.7,132.65,3.80165599]
[1725472423549,3.7678,132.7,132.67,3.7683]
[1725472423750,0.0510106,132.69,132.66,0.05000244]
[1725472423955,0.0510106,132.69,132.66,3.84382075]
[1725472424155,0.0510106,132.69,132.68,3.7682]
[1725472424847,0.0510106,132.69,132.66,3.84382075]
[1725472425650,0.0510106,132.69,132.67,3.7683]
[1725472425947,0.0510106,132.69,132.66,3.84382075]
[1725472426152,0.0510106,132.69,132.68,3.7682]
[1725472426354,0.0510106,132.69,132.66,3.84382075]
[1725472426747,0.0510106,132.69,132.67,3.7683]
[1725472426947,17.4010106,132.69,132.66,0.05000244]
[1725472427251,21.1185,132.67,132.66,0.05000244]
[1725472430057,3.7685,132.67,132.66,0.05000244]
[1725472434162,3.8190106,132.69,132.66,0.05000244]
[1725472434359,0.0510106,132.69,132.66,0.05000244]
[1725472434762,0.0510106,132.69,132.67,3.7684]
[1725472434964,0.0510106,132.69,132.66,0.05000244]
[1725472436865,0.0510106,132.69,132.68,3.7682]
[1725472437070,0.0510106,132.69,132.66,0.05000244]
[1725472437562,0.0510106,132.69,132.68,3.7682]
[1725472442265,1.3917,132.74,132.7,3.7675]
[1725472442466,1.3917,132.74,132.66,1.3581]
[1725472442665,1.3917,132.74,132.69,3.7679]
[1725472443270,0.05106511,132.73,132.7,0.05722382]
[1725472443669,3.7673,132.72,132.7,0.05722382]
[1725472444572,0.05106511,132.73,132.7,0.05722382]
[1725472445668,3.7674,132.71,132.7,0.05722382]
[1725472446767,3.7672,132.72,132.7,0.05722382]
[1725472446972,0.05106511,132.73,132.7,0.05722382]
[1725472447968,0.05106511,132.73,132.7,3.82472382]
[1725472448470,0.05106511,132.73,132.7,0.05722382]
[1725472448972,3.81806511,132.73,132.7,3.82462382]
[1725472450276,3.7671,132.72,132.7,0.05722382]
[1725472450873,3.81806511,132.73,132.7,3.82482382]
[1725472451982,3.81806511,132.73,132.71,3.7673]
[1725472452576,0.05106511,132.73,132.72,3.7671]
[1725472452877,0.05106511,132.73,132.7,0.05722382]
[1725472453969,0.05106511,132.73,132.7,3.82462382]
[1725472453970,3.81786511,132.73,132.7,3.82462382]
[1725472454175,3.81786511,132.73,132.7,0.05722382]
[1725472454674,3.81786511,132.73,132.7,17.42722382]
[1725472455282,3.81786511,132.73,132.7,0.05722382]
[1725472455678,0.05106511,132.73,132.7,0.05722382]
[1725472455877,0.05106511,132.73,132.71,3.7671]
[1725472456680,0.05106511,132.73,132.72,3.7671]
[1725472459384,3.81806511,132.73,132.71,3.7672]
[1725472459683,0.05106511,132.73,132.71,3.7672]
[1725472460386,1.3538,132.78,132.71,17.37]
[1725472460387,3.7654,132.78,132.71,17.37]
[1725472460585,3.74095568,132.81,132.73,17.37]
[1725472460792,3.74095568,132.81,132.74,3.70018001]
[1725472460988,3.7654,132.78,132.73,17.37]
[1725472461286,3.7654,132.78,132.73,21.23141775]
[1725472461588,0.05692725,132.77,132.74,0.04859634]
[1725472461790,0.05692725,132.77,132.75,3.7662]
[1725472461985,0.05692725,132.77,132.74,0.04859634]
[1725472463185,0.05692725,132.77,132.76,3.766]
[1725472463892,17.37,132.83,132.75,17.37]
[1725472463893,17.37,132.83,132.78,3.7653]
[1725472464392,3.765,132.8,132.75,17.37]
[1725472464593,21.10879582,132.83,132.75,17.37]
[1725472464594,21.10879582,132.83,132.76,3.7658]
[1725472464890,0.05541036,132.81,132.78,0.05109294]
[1725472465390,3.7652,132.79,132.78,0.05109294]
[1725472466592,3.7651,132.8,132.78,0.05109294]
[1725472467703,0.05541036,132.81,132.78,0.05109294]
[1725472468295,3.82011036,132.81,132.79,3.765]
[1725472468500,0.05541036,132.81,132.79,3.765]
[1725472469301,3.81991036,132.81,132.79,3.765]
[1725472470200,0.05541036,132.81,132.8,3.7648]
[1725472471002,0.05541036,132.81,132.79,3.765]
[1725472472799,3.82001036,132.81,132.79,3.765]
[1725472473004,0.05541036,132.81,132.78,3.81629294]
[1725472473703,0.05541036,132.81,132.78,0.05109294]
[1725472474401,3.7649,132.8,132.78,3.81649294]
[1725472474807,0.05541036,132.81,132.78,3.81649294]
[1725472475003,3.7648,132.8,132.78,3.81649294]
[1725472475810,0.05541036,132.81,132.78,0.05109294]
[1725472477005,0.05541036,132.81,132.78,3.81639294]
[1725472477409,3.7648,132.8,132.78,3.81639294]
[1725472479011,3.82001036,132.81,132.79,3.765]
[1725472479715,3.82001036,132.81,132.78,1.36599294]
[1725472479716,3.82001036,132.81,132.78,5.13119294]
[1725472479916,3.82001036,132.81,132.78,12.07119294]
[1725472481819,0.05541036,132.81,132.79,6.94]
[1725472482212,0.05541036,132.81,132.79,10.705]
[1725472482413,3.82001036,132.81,132.79,10.705]
[1725472482919,0.05541036,132.81,132.79,6.94]
[1725472483117,3.7648,132.8,132.79,6.94]
[1725472483321,0.05541036,132.81,132.79,10.7051]
[1725472483518,3.82011036,132.81,132.79,10.7051]
[1725472487114,0.05541036,132.81,132.8,3.7648]
[1725472488219,0.05541036,132.81,132.8,7.5895477]
[1725472489018,3.7641,132.83,132.81,3.7644]
[1725472489219,3.78332399,132.87,132.82,6.94]
[1725472489719,3.764,132.83,132.82,6.94]
[1725472490314,3.81175866,132.84,132.82,6.94]
[1725472490816,3.81175866,132.84,132.82,10.7041]
[1725472491210,3.764,132.83,132.82,6.94]
[1725472491522,0.04795866,132.84,132.82,10.7043]
[1725472492221,3.81185866,132.84,132.82,10.7043]
[1725472493822,3.764,132.83,132.82,10.7043]
[1725472494622,3.81185866,132.84,132.82,10.7043]
[1725472495415,3.764,132.83,132.82,10.7043]
[1725472495827,0.04795866,132.84,132.82,10.7043]
[1725472496127,3.81175866,132.84,132.82,10.7043]
[1725472496424,0.04795866,132.84,132.83,3.764]
[1725472496625,0.04795866,132.84,132.83,10.704]
[1725472498127,3.7626,132.88,132.83,6.94]
[1725472498321,1.4321,132.9,132.86,6.94]
[1725472498622,3.7628,132.88,132.86,6.94]
[1725472498824,1.4321,132.9,132.86,6.94]
[1725472499022,1.4321,132.9,132.87,0.05091101]
[1725472499423,3.7628,132.88,132.87,0.05091101]
[1725472500534,10.7028,132.88,132.87,0.05091101]
[1725472502422,3.7628,132.88,132.87,0.05091101]
[1725472510439,10.7028,132.88,132.87,0.05091101]
[1725472511133,29.55,132.88,132.79,2.7696]
[1725472511334,6.94,132.84,132.77,6.94]
[1725472511731,3.7644,132.82,132.79,3.7651]
[1725472512132,3.81531101,132.82,132.79,3.81738497]
[1725472512734,3.81531101,132.82,132.8,3.7648]
[1725472515437,3.81531101,132.82,132.79,3.81718497]
[1725472515644,3.7645,132.81,132.79,3.81718497]
[1725472516529,3.7648,132.8,132.79,0.05228497]
[1725472519135,3.7648,132.81,132.79,0.05228497]
[1725472519542,3.7648,132.8,132.79,0.05228497]
[1725472520738,10.7048,132.8,132.79,0.05228497]
[1725472522746,3.7662,132.76,132.72,10.70449766]
[1725472522936,10.61826479,132.79,132.72,6.94]
[1725472523137,6.94,132.79,132.73,3.7665]
[1725472523544,3.766,132.76,132.73,3.7665]
[1725472523847,3.81365397,132.76,132.73,3.82347377]
[1725472525545,3.7665,132.75,132.73,0.05697377]
[1725472525752,0.04765397,132.76,132.73,0.05697377]
[1725472526148,3.81375397,132.76,132.73,3.82357377]
[1725472526844,3.81375397,132.76,132.74,3.7665]
[1725472528446,0.04765397,132.76,132.74,3.7665]
[1725472528651,0.04765397,132.76,132.75,10.7062]
[1725472532957,3.7655,132.78,132.76,3.7659]
[1725472534058,3.7657,132.77,132.76,0.04917253]
[1725472536355,3.82114201,132.78,132.76,0.04917253]
[1725472537162,0.05554201,132.78,132.77,10.7057]
[1725472540258,1.325,132.84,132.77,6.94]
[1725472540561,131.5886362,134.57,132.81,6.94]
[1725472540562,6.94,132.88,132.81,6.94]
[1725472540750,43.42152299,132.9,132.81,6.94]
[1725472540751,1.3503,132.89,132.81,6.94]
[1725472540955,3.7636,132.85,132.82,3.7641]
[1725472541462,1.3503,132.89,132.84,6.94]
[1725472541660,110.96130069,132.91,132.85,6.98861589]
[1725472542161,3.7624,132.89,132.85,10.75181589]
[1725472542359,6.94,132.9,132.85,0.04861589]
[1725472543365,6.94,132.88,132.85,0.04861589]
[1725472543558,6.94,132.86,132.85,0.04861589]
[1725472543964,17.34,132.88,132.85,0.04861589]
[1725472544164,3.7631,132.86,132.85,0.04861589]
[1725472544556,7.45616632,132.86,132.85,0.04861589]
[1725472548670,24.79616632,132.86,132.85,0.04861589]
[1725472549477,24.91860696,132.86,132.85,0.04861589]
[1725472549673,17.34,132.85,132.76,18.7845]
[1725472550172,3.7641,132.83,132.8,3.7647]
[1725472550377,21.08021329,132.86,132.8,3.7647]
[1725472550676,3.81241589,132.84,132.82,0.04926824]
[1725472551274,3.764,132.83,132.82,0.04926824]
[1725472551468,17.34,132.83,132.76,1.4445]
[1725472551668,17.34,132.81,132.72,21.01362314]
[1725472552577,0.05565171,132.79,132.76,0.05680912]
[1725472552972,3.82095171,132.79,132.76,3.82260912]
[1725472554177,3.7655,132.78,132.76,0.05680912]
[1725472554376,3.88352364,132.79,132.76,0.05680912]
[1725472554572,3.7656,132.78,132.76,0.05680912]
[1725472556281,0.05565171,132.79,132.76,0.05680912]
[1725472557386,0.05565171,132.79,132.76,21.16931318]
[1725472557580,0.05565171,132.79,132.76,17.39680912]
[1725472557778,0.05565171,132.79,132.77,3.69190949]
[1725472558084,0.05565171,132.79,132.78,3.7654]
[1725472558975,17.34,132.86,132.8,3.7646]
[1725472559177,3.84650146,132.85,132.8,3.7646]
[1725472559385,3.764,132.83,132.8,3.7646]
[1725472560179,3.80623242,132.83,132.81,3.7645]
[1725472560380,0.04223242,132.83,132.8,17.39153784]
[1725472560989,0.04223242,132.83,132.81,3.7643]
[1725472561287,0.04223242,132.83,132.8,17.39153784]
[1725472561584,0.04223242,132.83,132.82,3.7643]
[1725472562886,3.7629,132.87,132.84,3.7634]
[1725472563081,3.7629,132.87,132.83,17.34]
[1725472563290,1.4478,132.9,132.83,17.34]
[1725472563593,3.78990963,132.89,132.84,3.7635]